Workbook

Sheet Budget by yr 2021-2025 PARIS
E1: Final
A2: BUDGET-OTASC | C2: 2021-2025 | E2: Admended | F2: Proposed
D3: Actual | E3: Budget | F3: Budget | G3: Budget | H3: Budget | I3: Budget
D4: 2020 | E4: 2021 | F4: 2022 | G4: 2023 | H4: 2024 | I4: 2025
A5: OPERATING REVENUES:
B6: Tobacco settlement proceeds | D6: 6,870,532 | E6: 7,430,102 | F6: 6,800,000 | G6: 6,700,000 | H6: 6,700,000 | I6: 6,500,000
B7: Interest income | D7: 50,472 | E7: 50,000 | F7: 60,000 | G7: 60,000 | H7: 70,000 | I7: 80,000
C8: Total operating revenues | D8: =SUM(D6:D7) -> 6,921,004 | E8: 7,480,102 | F8: 6,860,000 | G8: 6,760,000 | H8: =SUM(H6:H7) -> 6,770,000 | I8: =SUM(I6:I7) -> 6,580,000
A10: OPERATING EXPENSES:
B11: Insurance expense | D11: 4,779 | E11: 5,000 | F11: 5,300 | G11: 5,300 | H11: 5,400 | I11: 5,400
B12: Audit fee | D12: 6,500 | E12: 6,500 | F12: 6,800 | G12: 6,800 | H12: 6,800 | I12: 6,800
B13: Legal fees | D13: 4,000 | E13: 4,000 | F13: 4,200 | G13: 4,200 | H13: 4,200 | I13: 4,300
B14: Trustee fee | D14: 5,250 | E14: 6,500 | F14: 6,600 | G14: 6,600 | H14: 6,600 | I14: 6,600
B15: Administrative agency fee | D15: 29,058 | E15: 30,500 | F15: 30,600 | G15: 30,600 | H15: 30,600 | I15: 30,600
B16: Rating agency fee | D16: 6,519 | E16: 7,100 | F16: 7,200 | G16: 7,200 | H16: 7,200 | I16: 7,200
B17: General and administrative costs | D17: 67,000 | E17: 69,000 | F17: 71,000 | G17: 73,000 | H17: 75,000 | I17: 77,000
B18: OTASC - Bond Payment | D18: 1,945,000 | E18: 2,475,000 | F18: =-F34 -> 1,400,000 | G18: =-G34 -> 1,480,000 | H18: 1,565,000 | I18: 1,660,000
B19: Interest - Cash (Slow Pay) | D19: 4,963,155 | E19: 4,895,091 | F19: 4,842,356 | G19: 4,761,356 | H19: 4,675,716 | I19: 4,585,013
C22: Total operating expenses | D22: =SUM(D11:D20) -> 7,031,261 | E22: =SUM(E11:E20) -> 7,498,691 | F22: =SUM(F11:F19) -> 6,374,056 | G22: =SUM(G11:G19) -> 6,375,056 | H22: =SUM(H11:H19) -> 6,376,516 | I22: =SUM(I11:I19) -> 6,382,913
A24: INCREASE (DECREASE)IN NET DEFICIT | D24: =+D8-D22 -> (110,257) | E24: =+E8-E22 -> (18,589) | F24: =+F8-F22 -> 485,944 | G24: =+G8-G22 -> 384,944 | H24: =+H8-H22 -> 393,484 | I24: =+I8-I22 -> 197,088
A25: FUND BALANCE/NET DEFICIT -
A26: BEGINNING OF YEAR | D26: 6,627,283 | E26: =+D27 -> 6,517,026 | F26: =+E27 -> 6,498,437 | G26: =+F27 -> 6,984,381 | H26: =+G27 -> 7,369,325 | I26: =+H27 -> 7,762,809
A27: FUND BALANCE/NET DEFICIT - | D27: =+D24+D26 -> 6,517,026 | E27: 6,498,437 | F27: 6,984,381 | G27: =SUM(G24:G26) -> 7,369,325 | H27: =+H24+H26 -> 7,762,809 | I27: =+I24+I26 -> 7,959,897
A28: END OF YEAR
A32: Bonds payable 2005 - Bal Beginning of year | D32: =4963972+7860549 -> 12,824,521 | E32: =+D32+D36 -> 13,718,039 | F32: =+E32+E36 -> 14,673,811 | G32: =+F32+F36 -> 15,696,175 | H32: =+G32+G36 -> 16,789,770 | I32: =+H32+H36 -> 17,959,559
A33: Bonds payable 2016 - Bal Beginning of year | D33: 93,080,000 | E33: =+D33+D34 -> 91,135,000 | F33: =+E33+E34 -> 88,660,000 | G33: =+F33+F34 -> 87,260,000 | H33: =+G33+G34 -> 85,780,000 | I33: =+H33+H34 -> 84,215,000
A34: Assumed Bond Payment - Prin -Slow Pay- | D34: =-D18 -> (1,945,000) | E34: =-'Details for Budget 2021-2025'!B37 -> (2,475,000) | F34: =-'Details for Budget 2021-2025'!B38 -> (1,400,000) | G34: =-'Details for Budget 2021-2025'!B39 -> (1,480,000) | H34: =-'Details for Budget 2021-2025'!B40 -> (1,565,000) | I34: =-'Details for Budget 2021-2025'!B41 -> (1,660,000)
A35: Subtotal | D35: =SUM(D32:D34) -> 103,959,521 | E35: =SUM(E32:E34) -> 102,378,039 | F35: =SUM(F32:F34) -> 101,933,811 | G35: 101,476,175 | H35: 101,004,770 | I35: 100,514,559
A36: Add: - Accretion Bal at Year end | D36: 893,518 | E36: 955,772 | F36: 1,022,364 | G36: 1,093,595 | H36: 1,169,789 | I36: 1,251,291.95
A37: Total bonds payable and accreted interest-Y/E | D37: =SUM(D35:D36) -> 104,853,039 | E37: =SUM(E35:E36) -> 103,333,811 | F37: =+F35+F36 -> 102,956,175 | G37: =SUM(G35:G36) -> 102,569,770 | H37: =SUM(H35:H36) -> 102,174,559 | I37: =SUM(I35:I36) -> 101,765,851

Sheet Details for Budget 2021-2025
A2: 1) Drastically reduce interest due to COVID- back to pre rate upswing and lowered market value increase | N2: Much of the OTASC budget is an estimated
A3: will use 2017 interest as a basis | D3: 60,000.00 | N3: No clear direction on MSA payments in the future or expense growth
A5: 2) 2021 Independent auditor determined that the number of Native American manufactured cigarates sold, decreased
A6: which resulted in a lower credit to the PMs, and therefore increased payments to NYS.
A9: 3) Calc of Interest Expense - Payments - 2016 Debt - Minus Prmium and Deferred Inflow | H9: ONLY FOR GOVERNMENTAL
H10: 2016 A-1 | I10: 2016A-2
B11: Slow Pay Schedule | I11: Premium & | J11: Accreted | K11: Accrued | M11: Net
B12: 2016 A-1 | C12: 2016 A-1 | D12: 2016 A-2B | E12: 2016 A-2B | F12: Total | H12: Premium | I12: Def Inflow | J12: Interest | K12: Interest Adj | M12: Interest
A13: 2020 Interest | B13: 671,765.63 | C13: 822,537.50 | D13: 315,125.00 | E13: 699,500.00 | F13: =SUM(B13:E13) -> 2,508,928.13
B14: 617,062.50 | C14: 822,537.50 | D14: 315,125.00 | E14: 699,500.00 | F14: =SUM(B14:E14) -> 2,454,225.00
F15: =SUM(F13:F14) -> 4,963,153.13 | H15: (266,049.00) | I15: (758,670.27) | J15: 893,518.00 | K15: (9,318.00) | M15: =+F15+H15+I15+J15+K15 -> 4,822,633.85
A16: 2021 Interest | B16: 617,062.50 | C16: 822,537.50 | D16: 315,125.00 | E16: 699,500.00 | F16: =SUM(B16:E16) -> 2,454,225.00
B17: 603,703.13 | C17: 822,537.50 | D17: 315,125.00 | E17: 699,500.00 | F17: =SUM(B17:E17) -> 2,440,865.63
F18: =SUM(F16:F17) -> 4,895,090.63 | H18: (266,049.00) | I18: (758,670.27) | J18: =E50 -> 955,772.25 | K18: (9,000.00) | M18: =+F18+H18+I18+J18+K18 -> 4,817,143.60
A19: 2022 Interest | B19: 603,703.13 | C19: 822,537.50 | D19: 315,125.00 | E19: 699,500.00 | F19: =SUM(B19:E19) -> 2,440,865.63
B20: 564,328.13 | C20: 822,537.50 | D20: 315,125.00 | E20: 699,500.00 | F20: =SUM(B20:E20) -> 2,401,490.63
F21: =SUM(F19:F20) -> 4,842,356.25 | H21: (266,049.00) | I21: (758,670.27) | J21: =E52 -> 1,022,363.82 | K21: (9,000.00) | M21: =+F21+H21+I21+J21+K21 -> 4,831,000.80
A22: 2023 Interest | B22: 564,328.13 | C22: 822,537.50 | D22: 315,125.00 | E22: 699,500.00 | F22: =SUM(B22:E22) -> 2,401,490.63
B23: 522,703.13 | C23: 822,537.50 | D23: 315,125.00 | E23: 699,500.00 | F23: =SUM(B23:E23) -> 2,359,865.63
F24: =SUM(F22:F23) -> 4,761,356.25 | H24: (266,049.00) | I24: (758,670.27) | J24: =E54 -> 1,093,595.04 | K24: (9,000.00) | M24: =+F24+H24+I24+J24+K24 -> 4,821,232.02
A25: 2024 Interest | B25: 522,703.13 | C25: 822,537.50 | D25: 315,125.00 | E25: 699,500.00 | F25: =SUM(B25:E25) -> 2,359,865.63
B26: 478,687.50 | C26: 822,537.50 | D26: 315,125.00 | E26: 699,500.00 | F26: =SUM(B26:E26) -> 2,315,850.00
F27: =SUM(F25:F26) -> 4,675,715.63 | H27: (266,049.00) | I27: (758,670.27) | J27: =E56 -> 1,169,789.16 | K27: (9,000.00) | M27: =+F27+H27+I27+J27+K27 -> 4,811,785.51
A28: 2025 Interest | B28: 478,687.50 | C28: 822,537.50 | D28: 315,125.00 | E28: 699,500.00 | F28: =SUM(B28:E28) -> 2,315,850.00
B29: 432,000.00 | C29: 822,537.50 | D29: 315,125.00 | E29: 699,500.00 | F29: =SUM(B29:E29) -> 2,269,162.50
F30: =SUM(F28:F29) -> 4,585,012.50 | H30: (266,049.00) | I30: (758,670.27) | J30: =E58 -> 1,251,291.95 | K30: (9,000.00) | M30: =+F30+H30+I30+J30+K30 -> 4,802,585.18
A33: Per BLX- Slow ay Schedule -2020 Audit
A34: 5) Calc of Prin Payments | C34: Estimate
B35: Slow Pay | C35: MSA Payt
A36: 2020 | B36: 1,945,000 | C36: 6,870,532
A37: 2021 | B37: 2,475,000 | C37: 7,430,102 | D37: *Note: Actual MSA Payment and Bond Payment
A38: 2022 | B38: 1,400,000 | C38: 6,800,000
A39: 2023 | B39: 1,480,000 | C39: 6,700,000
A40: 2024 | B40: 1,565,000 | C40: 6,700,000
A41: 2025 | B41: 1,660,000 | C41: 6,500,000
A43: 6) Admin costs- allowable for $2k increase each year
A45: 7) Assume increase in expenses by 2021-2025
A46: Insurance - audit - legal fees etc
A48: 8) Accreted Interest- added to 2005 Bonds
A50: accreted interest | E50: 955,772
A51: 2021-12-31 | B51: 14,673,732 | C51: 14,673,732
A52: accreted interest | E52: 1,022,364
A53: 2022-12-31 | B53: 15,696,095 | C53: 15,696,095
A54: accreted interest | E54: 1,093,595
A55: 2023-12-31 | B55: 16,789,691 | C55: 16,789,691
A56: accreted interest | E56: 1,169,789
A57: 2024-12-31 | B57: 17,959,480 | C57: 17,959,480
A58: accreted interest | E58: 1,251,292
A59: 2025-12-31 | B59: 19,210,772 | C59: 19,210,772
